Cogmind - Beta 10.2 --- EXPLORER MODE // 2021.02.24 @ 02:46:04 // Winter2019/RPGLIKE Player: TeaParrot Result: Self-destructed Performance ------------- Evolutions (2) 1000 Regions Visited (5) 1000 Robots Destroyed (15) 75 Value Destroyed (297) 297 Prototype IDs (23) 460 Alien Tech Used (0) 0 Bonus (300) 300 TOTAL SCORE: 3132 Bonus ------- Aligned with FarCom 300 Cogmind --------- Core Integrity 522/600 Matter 290/300 Energy 115/225 System Corruption 10% Temperature Cool (0) Movement Walking (120) Location -8/Materials Parts ------- > --- POWER (2) -------- Light Ion Engine > --- PROPULSION (3) --- Aluminum Leg Improved Aluminum Leg > --- UTILITY (4) ------ Light Armor Plating > --- WEAPON (2) ------- Latent Energy Streamer Plasma Flamer > --- INVENTORY (2) ---- Hover Unit Peak State ------------ > --- POWER ------------ Light Ion Engine > --- PROPULSION ------- Aluminum Leg Improved Aluminum Leg > --- UTILITY ---------- Light Armor Plating > --- WEAPON ----------- Latent Energy Streamer Plasma Flamer > --- INVENTORY -------- (None) [Rating: 20] Favorites ----------- Power Light Ion Engine Engine Light Ion Engine Propulsion Aluminum Leg Leg Aluminum Leg Utility Light Armor Plating Protection Light Armor Plating Weapon Latent Energy Streamer Energy Gun EM Pulse Gun Energy Cannon Latent Energy Streamer Launcher Grenade Launcher Special Weapon Plasma Flamer Build | -11 -10 -10 -10 -9 -8 ------- Run | Scr Mat Min Exi Min Mat Slots Evolved 7 | . . . 4 . 3 Power 1 | . . . 1 . . Propulsion 2 | . . . 1 . 1 Utility 3 | . . . 1 . 2 Weapon 1 | . . . 1 . . Parts Attached 8 | 4 . 1 1 . 2 Power 1 | 1 . . . . . Engine 1 | 1 . . . . . Core . | . . . . . . Reactor . | . . . . . . Propulsion 2 | 1 . . . . 1 Treads . | . . . . . . Leg 2 | 1 . . . . 1 Wheel . | . . . . . . Hover . | . . . . . . Flight . | . . . . . . Utility 1 | 1 . . . . . Device . | . . . . . . Storage . | . . . . . . Processor . | . . . . . . Hackware . | . . . . . . Protection 1 | 1 . . . . . Artifact . | . . . . . . Weapon 4 | 1 . 1 1 . 1 Energy Gun 1 | 1 . . . . . Energy Cannon 1 | . . . 1 . . Ballistic Gun . | . . . . . . Ballistic Cannon . | . . . . . . Launcher 1 | . . 1 . . . Special Weapon 1 | . . . . . 1 Impact Weapon . | . . . . . . Slashing Weapon . | . . . . . . Piercing Weapon . | . . . . . . Special Melee Weapon . | . . . . . . Unidentified Prototypes . | . . . . . . Parts Lost . | . . . . . . Power . | . . . . . . Propulsion . | . . . . . . Utility . | . . . . . . Weapon . | . . . . . . Highest Loss Streak . | . . . . . . Average Slot Usage (%) 90 | . 100 100 99 50 52 Engine 22 | . 25 25 25 12 9 Leg 23 | . 25 25 25 12 16 Protection 22 | . 25 25 25 12 9 Energy Gun 2 | . 25 4 . . . Energy Cannon 9 | . . . 19 12 9 Launcher 10 | . . 20 5 . . Special Weapon 1 | . . . . . 9 Naked Turns . | . . . . . . Heaviest Build 19 | 8 8 9 16 16 19 Greatest Support 28 | 10 10 10 15 15 28 Greatest Overweight (x) 1 | . . . 1 1 1 Average Overweight (x) . | . . . . 1 . Largest Inventory Capacity 2 | . . 1 1 2 2 Average Capacity . | . . . 1 2 2 Most Carried 1 | . . 1 1 1 1 Average Carried . | . . . 1 1 . Final Capacity 2 | . . 1 2 2 2 Final Carried 1 | . . 1 1 1 1 Class Distribution -------------------- 100% | Hacker-Mutant Dominant Class ---------------- Hacker-Mutant | -10/Materials Hacker-Mutant | -10/Mines Hacker-Mutant | -10/Exiles Hacker-Mutant | -9/Mines Hacker-Mutant | -8/Materials Resources | -11 -10 -10 -10 -9 -8 ----------- Run | Scr Mat Min Exi Min Mat Matter Collected 310 | 240 . 40 . 10 20 Remotely . | . . . . . . Salvage Created 238 | . . 42 . . 196 Parts 13 | . . 7 . . 6 Haulers Intercepted . | . . . . . . Recyclers Shooed . | . . . . . . Parts Field Recycled . | . . . . . . Retrieved Matter . | . . . . . . Parts Self-Destructed . | . . . . . . Prevented . | . . . . . . Kills | -11 -10 -10 -10 -9 -8 ------- Run | Scr Mat Min Exi Min Mat Combat Hostiles Destroyed 9 | . . 6 . . 3 Cannons 3 | . . . . . 3 AOE 6 | . . 6 . . . Classes Destroyed 8 | . . 1 . . 7 Worker 3 | . . . . . 3 Builder 1 | . . . . . 1 Operator 1 | . . . . . 1 Watcher 1 | . . . . . 1 Swarmer 6 | . . 6 . . . Grunt 1 | . . . . . 1 Brawler 1 | . . . . . 1 Hunter 1 | . . . . . 1 Best Kill Streak 3 | . . 2 . . 3 Combat Bots Only 2 | . . 2 . . 1 Max Kills in Single Turn 3 | . . 2 . . 3 Gunslinging . | . . . . . . Exploded 2 | . . 2 . . . Melee . | . . . . . . Uniques/NPCs Destroyed . | . . . . . . Combat | -11 -10 -10 -10 -9 -8 -------- Run | Scr Mat Min Exi Min Mat Damage Taken 237 | . 9 83 . 18 127 Core 163 | . 5 56 . 13 89 Absorbed by Shields . | . . . . . . Redirected to Core 132 | . 5 39 . 5 83 Core Remaining (%) 97 | 100 . . . 95 . Volleys Fired 27 | . . 10 . . 17 Largest 1 | . . 1 . . 1 Hottest 100 | . . 40 . . 100 Shots Fired 28 | . . 10 . . 18 Gun 7 | . . 7 . . . Cannon 3 | . . . . . 3 Launcher 3 | . . 3 . . . Special 15 | . . . . . 15 Kinetic . | . . . . . . Thermal 15 | . . . . . 15 Explosive 3 | . . 3 . . . Electromagnetic 10 | . . 7 . . 3 Robot Hit Streak 19 | . . 4 . . 19 Robot Miss Streak 3 | . . 3 . . . Penetration Max . | . . . . . . Secondary Targets . | . . . . . . Shots Hit Robots 23 | . . 5 . . 18 Core Hits 22 | . . 6 . . 16 Critical Hits . | . . . . . . Critical Kills . | . . . . . . Critical Parts Destroyed . | . . . . . . Melee Attacks . | . . . . . . Impact . | . . . . . . Slashing . | . . . . . . Piercing . | . . . . . . Sneak Attacks . | . . . . . . Combat Hostiles . | . . . . . . Follow-up Attacks . | . . . . . . Damage Inflicted 1255 | . . 266 . . 989 Guns 41 | . . 41 . . . Cannons 25 | . . . . . 25 Explosions 999 | . . 225 . . 774 Melee . | . . . . . . Ramming . | . . . . . . Kinetic . | . . . . . . Thermal 253 | . . 63 . . 190 Explosive 162 | . . 162 . . . Electromagnetic 840 | . . 41 . . 799 Impact . | . . . . . . Slashing . | . . . . . . Piercing . | . . . . . . Highest Corruption 10 | . . . . . 10 Average Corruption 5 | . . . . . 5 Corruption Purged . | . . . . . . Effects 5 | . . . . . 5 Message Errors 1 | . . . . . 1 Matter Fused 1 | . . . . . 1 Heat Flow Errors 1 | . . . . . 1 Energy Discharges 1 | . . . . . 1 Misfires 1 | . . . . . 1 Overload Shots . | . . . . . . Overflow Damage 146 | . . . . . 146 Projectiles . | . . . . . . Explosions 146 | . . . . . 146 Melee . | . . . . . . Knockbacks . | . . . . . . Impact . | . . . . . . Kinetic . | . . . . . . Secondary . | . . . . . . Self-Inflicted Damage 54 | . . 18 . . 36 Shots 2 | . . 1 . . 1 Rammed . | . . . . . . Targets Rammed . | . . . . . . Kicked . | . . . . . . Crushed . | . . . . . . Highest Temperature 371 | . . 42 . . 371 Average Temperature 111 | . . 21 . . 124 Received Heat Transfer 60 | . . . . 24 36 Effects 2 | . . . . . 2 Shutdowns 1 | . . . . . 1 Interference 1 | . . . . . 1 Siege Activations . | . . . . . . Robots Corrupted . | . . . . . . Combat Hostiles . | . . . . . . Parts Fried 3 | . . . . . 3 Impact Corruptions . | . . . . . . Robots Melted . | . . . . . . Combat Hostiles . | . . . . . . Parts Melted 2 | . . 1 . . 1 Heat Transferred 1250 | . . 50 . . 1200 Parts Sabotaged . | . . . . . . Parts Stolen . | . . . . . . Parts Stripped . | . . . . . . Power Chain Reactions 1 | . . 1 . . . Missiles Intercepted . | . . . . . . Latent Energy Used 538 | . . . . . 538 LE Corruption 9 | . . . . . 9 Alert | -11 -10 -10 -10 -9 -8 ------- Run | Scr Mat Min Exi Min Mat Peak Influence 227 | . . 173 . . 227 Initial . | . . . . . . Average 56 | . . 46 . . 129 Maximum Alert Level 1 | . . . . . 1 Low Security (%) 95 | 100 100 100 . 100 80 Level 1 4 | . . . . . 19 Level 2 . | . . . . . . Level 3 . | . . . . . . Level 4 . | . . . . . . Level 5 . | . . . . . . High Security . | . . . . . . Max Security . | . . . . . . Squads Dispatched . | . . . . . . Investigation . | . . . . . . Extermination . | . . . . . . Reinforcement . | . . . . . . Assault . | . . . . . . Garrison . | . . . . . . Intercept . | . . . . . . Construction Impeded . | . . . . . . Haulers Reinforced . | . . . . . . Stealth | -11 -10 -10 -10 -9 -8 --------- Run | Scr Mat Min Exi Min Mat Distress Signals . | . . . . . . Communications Jammed . | . . . . . . Distress Signals . | . . . . . . Times Spotted 15 | . 2 5 . 2 6 Peak Tracking Total 2 | . 2 2 . 2 2 Tactical Retreats . | . . . . . . Traps | -11 -10 -10 -10 -9 -8 ------- Run | Scr Mat Min Exi Min Mat Traps Triggered 3 | . . . . . 3 Indirectly 1 | . . . . . 1 Trap Hack Attempts . | . . . . . . Triggered . | . . . . . . Disarmed . | . . . . . . Reprogrammed . | . . . . . . Reused . | . . . . . . Traps Extracted . | . . . . . . Installed . | . . . . . . Triggered . | . . . . . . Machines | -11 -10 -10 -10 -9 -8 ---------- Run | Scr Mat Min Exi Min Mat Machines Disabled 5 | . . 2 . . 3 Max in Single Turn 2 | . . 2 . . 2 Machines Sabotaged . | . . . . . . Garrisons Compromised . | . . . . . . Overloaded Fab Kills . | . . . . . . Fab Network Shutdowns . | . . . . . . Hacking | -11 -10 -10 -10 -9 -8 --------- Run | Scr Mat Min Exi Min Mat Machines Accessed 3 | . . . 2 1 . Terminals 1 | . . . . 1 . Fabricators . | . . . . . . Repair Stations . | . . . . . . Recycling Units . | . . . . . . Scanalyzers . | . . . . . . Garrison Access . | . . . . . . Total Hacks 7 | . . . 3 4 . Successful 5 | . . . 3 2 . Failed 2 | . . . . 2 . Catastrophic . | . . . . . . Database Lockouts . | . . . . . . Manual 1 | . . . 1 . . Terminals 4 | . . . . 4 . Fabricators . | . . . . . . Repair Stations . | . . . . . . Recycling Units . | . . . . . . Scanalyzers . | . . . . . . Garrison Access . | . . . . . . Terminal Hacks 5 | . . . 3 2 . Record 4 | . . . 2 2 . EX-Prototype ID Bank 1 | . . . 1 . . Fabricator Hacks . | . . . . . . Repair Station Hacks . | . . . . . . Recycling Unit Hacks . | . . . . . . Scanalyzer . | . . . . . . Garrison Access Hacks . | . . . . . . Unauthorized Hacks . | . . . . . . Terminals . | . . . . . . Fabricators . | . . . . . . Repair Stations . | . . . . . . Recycling Units . | . . . . . . Scanalyzers . | . . . . . . Garrison Access . | . . . . . . Data Cores Recovered 1 | . . . . . 1 Used . | . . . . . . Hacking Detections 1 | . . . . 1 . Full Trace Events . | . . . . . . Feedback Events . | . . . . . . Feedback Blocked . | . . . . . . Robot Schematics Acquired . | . . . . . . Robots Built . | . . . . . . Matter . | . . . . . . Time . | . . . . . . Total Robot Build Rating . | . . . . . . Part Schematics Acquired . | . . . . . . Parts Built . | . . . . . . Matter . | . . . . . . Time . | . . . . . . Total Part Build Rating . | . . . . . . Parts Repaired . | . . . . . . Time . | . . . . . . Parts Recycled . | . . . . . . Recycled Matter . | . . . . . . Retrieved Matter . | . . . . . . Retrieved Components . | . . . . . . Parts Scanalyzed . | . . . . . . Part Schematics Acquired . | . . . . . . Parts Damaged . | . . . . . . Bothacking | -11 -10 -10 -10 -9 -8 ------------ Run | Scr Mat Min Exi Min Mat Used RIF Installer . | . . . . . . Robots Hacked . | . . . . . . Non-combat . | . . . . . . Combat . | . . . . . . Robot Hacks Applied . | . . . . . . Relay Couplers Released . | . . . . . . Robots Rewired . | . . . . . . Allies Hacked . | . . . . . . Hacks Repelled . | . . . . . . Allies | -11 -10 -10 -10 -9 -8 -------- Run | Scr Mat Min Exi Min Mat Total Allies . | . . . . . . Largest Group . | . . . . . . Highest-Rated Group . | . . . . . . Highest-Rated Ally . | . . . . . . Total Orders . | . . . . . . Ally Attacks . | . . . . . . Total Damage . | . . . . . . Kills . | . . . . . . Allies Corrupted . | . . . . . . Allies Melted . | . . . . . . Intel | -11 -10 -10 -10 -9 -8 ------- Run | Scr Mat Min Exi Min Mat Robot Analysis Total . | . . . . . . Derelict Logs Recovered . | . . . . . . Drone Launches . | . . . . . . Drone Recoveries . | . . . . . . Exploration | -11 -10 -10 -10 -9 -8 ------------- Run | Scr Mat Min Exi Min Mat Turns Passed 1855 | 36 35 728 698 110 248 Spaces Moved 1310 | 30 30 576 484 74 116 Core 7 | 7 . . . . . Treads . | . . . . . . Legs 1303 | 23 30 576 484 74 116 Wheels . | . . . . . . Hover . | . . . . . . Flight . | . . . . . . Fastest Speed 50 | 50 120 120 120 150 120 Average Speed 130 | 103 120 120 142 150 127 Slowest Speed 150 | 120 120 120 150 150 150 Overloaded Moves . | . . . . . . Propulsion Burnouts . | . . . . . . Robots Hopped . | . . . . . . Cave-ins Triggered . | . . . . . . Exploration Rate (%) 41 | 3 10 99 92 22 20 Regions Visited 5 Branch Regions 3 Pre-discovered Areas . | . . . . . . Known Exits Taken 5 | 1 1 1 1 1 . Unknown Exits Taken . | . . . . . . Scrap Searched 2 | . . 1 . 1 . Spaces Dug . | . . . . . . Terrain Destroyed 128 | . . 15 . . 113 Melee . | . . . . . . Projectile . | . . . . . . AOE 128 | . . 15 . . 113 Terrain Rammed . | . . . . . . Walls Destroyed . | . . . . . . Machines Disabled . | . . . . . . Actions | -11 -10 -10 -10 -9 -8 --------- Run | Scr Mat Min Exi Min Mat Total 1422 | 33 29 603 493 73 191 Wait 72 | . . 12 8 . 52 Move 1305 | 29 29 575 483 73 116 Hop . | . . . . . . Pick Up 3 | . . 1 . . 2 Fast Attach 6 | 4 . 1 1 . . Attach 2 | . . . . . 2 Detach . | . . . . . . Swap . | . . . . . . Drop 2 | . . 1 1 . . Fire 27 | . . 10 . . 17 Melee . | . . . . . . Ram . | . . . . . . Kick . | . . . . . . Crush . | . . . . . . Escape Stasis . | . . . . . . Rewire . | . . . . . . Trap . | . . . . . . Miscellaneous 5 | . . 3 . . 2 Route ------- -11/Scrapyard -10/Materials -10/Mines (discovered 3 exits: *Mat x2 / *Exi) -10/Exiles -9/Mines -8/Materials (discovered 1 exit: *Fac) History --------- Turn | Location | Event 15 | -11/Scrapyard | Identified exit to Materials 15 | -11/Scrapyard | Discovered exit to Materials (range 15) 37 | -11/Scrapyard | Entered Materials 53 | -10/Materials | Identified exit to Mines 53 | -10/Materials | Discovered exit to Mines (range 15) 72 | -10/Materials | Entered Mines 198 | -10/Mines | Identified exit to Materials 198 | -10/Mines | Discovered exit to Materials (range 13) 307 | -10/Mines | Build established: Hacker-Mutant 470 | -10/Mines | A weapon hastily lodged in a ceiling crevice suddenly fell to the ground 504 | -10/Mines | Discovered exit to Materials (range 9) 558 | -10/Mines | YI-UF0 nonchalantly dropped a Grenade Launcher on the ground 796 | -10/Mines | Deemed a non-threat by the Exiles lab entrance 796 | -10/Mines | Identified exit to Exiles 796 | -10/Mines | Discovered exit to Exiles (range 5) 800 | -10/Mines | Entered Exiles 829 | -10/Exiles | Met 8R-AWN 850 | -10/Exiles | Met EX-HEX 884 | -10/Exiles | Met EX-BIN 901 | -10/Exiles | Reached level 2 901 | -10/Exiles | Aligned with FarCom system 902 | -10/Exiles | Given EX-Vault access code 941 | -10/Exiles | Opened EX-Vault 950 | -10/Exiles | Found Latent Energy Streamer 983 | -10/Exiles | Warned to stay clear of 0b10 Research branches 1172 | -10/Exiles | Visited The Gauntlet 1338 | -10/Exiles | Met EX-DEC 1474 | -10/Exiles | Identified exit to Mines 1474 | -10/Exiles | Discovered exit to Mines (range 10) 1498 | -10/Exiles | Upgraded with Power slot (x1) 1498 | -10/Exiles | Upgraded with Propulsion slot (x1) 1498 | -10/Exiles | Upgraded with Utility slot (x1) 1498 | -10/Exiles | Upgraded with Weapon slot (x1) 1498 | -10/Exiles | Left Exiles lab with Latent Energy Streamer 1498 | -10/Exiles | Entered Mines 1582 | -9/Mines | Identified exit to Materials 1582 | -9/Mines | Discovered exit to Materials (range 5) 1608 | -9/Mines | Entered Materials 1610 | -8/Materials | Reached level 3 1610 | -8/Materials | Reached level 4 1610 | -8/Materials | Reached level 5 1610 | -8/Materials | Reached level 6 1618 | -8/Materials | Upgraded with Propulsion slot (x1) 1618 | -8/Materials | Upgraded with Utility slot (x2) 1851 | -8/Materials | Identified exit to Factory 1851 | -8/Materials | Discovered exit to Factory (range 16) 1855 | -8/Materials | System corruption reached 10% 1856 | -8/Materials | Self-destructed Last Messages --------------- 01806_ B-36 Bruiser heat damages Rnf. Ion Engine, Lgt. Armor Plating. 01806_ B-36 Bruiser overheating. 01807_ B-36 Bruiser destroyed. 01807_ K-01 Serf collects debris. 01808_ System corrupted: Matter fused (-10). 01811_ K-01 Serf collects debris. 01814_ Used Protomatter to restore core integrity (+39, depleted) 01814_ K-01 Serf collects debris. 01849_ System corrupted: FCS attempts to trigger Latent Energy Streamer. 01849_ System corrupted: Latent Energy Streamer misfires. 01849_ Door malfunctions. 01849_ Destroyed Lgt. Ion Engine. 01849_ K-01 Serf destroyed. 01849_ Proton Bomb Trap short circuited. 01849_ A bubble of electromagnetic force engulfs the area. 01851_ EXIT=FOUND: FACTORY 01853_ Triggered Proton Bomb Trap. 01853_ A bubble of electromagnetic force engulfs the area. 01854_ Triggered Proton Bomb Trap. 01854_ A bubble of electromagnetic force engulfs the area. Map ----- +----------------------------------------------------+ | ??????????????????????????????????? | | ??????????????????????????????????? | | ??????????????????????????????????? | | ??????????????????????????????????? | | ??????????????????????????????????? | | ??????????????????????????????????? | | ??????????????????????????????????? | | ??????????????????????????????????? | | ??????????????????????????????????? | | ??????????????????????????????????? | | ??????????????????????????????????? | | ????????????????????????###???????? | | ???????????????????????? ???????? | | ???????????????????????# < #??????? | | ???????????????????????# #??????? | | ???????????????????????# +??????? | | ???????????????????????# #??????? | | ???????????????????????# #??????? | | ???????????????????????# #?##???? | | ????????????????????#### #? ????? | | ???????????????????##%% # ????? | | ???????????????????#% # ?????? | | ???????????????????#% /??????? | | ???????????????????#% #??????? | | ???????????????????#% #??????? | | ????????????????????#%% ^@ ######## | | ????????????????????#### # """ # | | ??????????????????????# ] "" # | | ??????????????????????# # | | ????????????????####### # | | ????????????????# %=; ] # | | ????????????????# ; [ # | | ????????????????# ;####### | | ????????????????# ##;;;;;;#?????? | | ????????????????# #########?????? | | ????????????????# #?????????????? | | ????????????????# #?????????????? | | ????????????????# #?????????????? | | ????????????????# #?????????????? | | ????????????????# ########??????? | | ????????????????# # #??????? | | ????????????????# # #??????? | | ????#######?????# # #??????? | | ##### ####### + #??????? | | # #??????? | | % # #??????? | | ########??????? | | ##### ###########?????????????? | | ????## ###??????????????????????? | | ???### " ##?????????????????????? | +----------------------------------------------------+ Best States ------------- Heat Dissipation 25 Energy Generation 10 Energy Capacity 225 Matter Stores 300 Matter Capacity 300 Sight Range 16 Terrain Scan Density 10 Armor Coverage 150 Resistance: KI 55 Resistance: TH 55 Resistance: EX 55 Resistance: EM 35 Resistance: I 35 Resistance: S 35 Resistance: P 35 Evasion (%) 40 Offensive Hacking 20 Item Schematics ----------------- None Robot Schematics ------------------ None Fabricated ------------ Nothing Alien Tech Used ----------------- None Achievements -------------- None Challenges ------------ None RPGLIKE | -11 -10 -10 -10 -9 -8 --------- Run | Scr Mat Min Exi Min Mat Levels Raised 5 | . . . 1 . 4 XP Earned 14567 | 6000 . 1250 350 843 6124 XP Spent 11375 | . . 250 7100 . 4025 Upgrades 26 | . . 1 18 . 7 Power Slot 1 | . . . 1 . . Propulsion Slot 2 | . . . 1 . 1 Utility Slot 3 | . . . 1 . 2 Weapon Slot 1 | . . . 1 . . Energy Storage 2 | . . . . . 2 Mass Support 1 | . . . 1 . . Inventory Capacity 2 | . . 1 1 . . Ranged Accuracy 2 | . . . . . 2 KI Resistance % 4 | . . . 4 . . TH Resistance % 4 | . . . 4 . . EX Resistance % 4 | . . . 4 . . Protomatter Created 32 | . . 19 . . 13 Integrity Restored 85 | . . 46 . . 39 Core 85 | . . 46 . . 39 Protomatter Decayed 2 | . . 2 . . . Game ------ Seed KineticOmegaMatter Manual? 0 Play Time 00:15:55 Cumulative 62.8 hours Start 2021.02.20 @ 19:19:44 End 2021.02.24 @ 02:46:04 Sessions 4 Manual Loads 0 Difficulty Explorer Special Mode Winter2019/RPGLIKE Game No. 27 Rogue 0 Adventurer 5 Explorer 22 Win Type - Total 9 Types 5/1/0/1/1/0/0/1/0 Lore% 68 Gallery% 64 Achievement% 65 Wizard Run 0 Options --------- ASCII 0 Keyboard 0 Movement Mouse Keybinds 0 Fullscreen 0 Font 14/Terminus Map View 76x50 Tactical HUD 1 Map Filters NONE Filters NONE Steam 1 RUN: dd990817-d725-4bef-8c17-5c6355cd921f